[Event "ESCC-65 2022"]
[Site "Lublin"]
[Date "2022.07.09"]
[Round "5.2"]
[White "Renman, Nils-Gustaf"]
[Black "Lederman, Leon"]
[Result "1/2-1/2"]
[ECO "D21"]
[WhiteElo "2311"]
[BlackElo "2213"]
[Annotator "RC"]
[PlyCount "26"]
[EventDate "2022.07.05"]
[EventType "swiss"]
[EventCountry "POL"]
[SourceTitle "playchess.com"]
[Source "ChessBase"]
[SourceQuality "1"]
[TimeControl "40/5400+30:1800+30"]

1. d4 {[%emt 0:00:04]} d5 {[%emt 0:00:00]} 2. c4 {[%emt 0:00:29]} dxc4 {[%emt 0:00:00]} 3. Nf3 {[%emt 0:00:16]} a6 {[%emt 0:00:00]} 4. e3 {[%emt 0:00:22]} Bg4 {[%emt 0:00:00]} 5. Bxc4 {[%emt 0:00:09]} e6 {[%emt 0:00:00]} 6. h3 {[%emt 0:01:25]} Bxf3 {[%emt 0:00:13]} 7. Qxf3 {[%emt 0:00:10]} Nc6 {[%emt 0:00:02]} 8. O-O {[%emt 0:00:47]} Nf6 {[%emt 0:00:06]} 9. Rd1 {[%emt 0:01:50]} Bd6 {[%emt 0:00:17]} 10. Nc3 {[%emt 0:02:40]} O-O {[%emt 0:03:00]} 11. a3 {[%emt 0:05:15]} Qe7 {[%emt 0:09:39]} 12. e4 {[%emt 0:18:36]} e5 {[%emt 0:06:35]} 13. dxe5 {[%emt 0:11:08]} Nxe5 {[%emt 0:01:09]} 1/2-1/2

[Event "ESCC-65 2022"]
[Site "Lublin"]
[Date "2022.07.09"]
[Round "5.3"]
[White "Bogdanov, Valentin"]
[Black "Malesevic, Nedeljko"]
[Result "1/2-1/2"]
[ECO "D68"]
[WhiteElo "2333"]
[BlackElo "2228"]
[Annotator "RC"]
[PlyCount "64"]
[EventDate "2022.07.05"]
[EventType "swiss"]
[EventCountry "POL"]
[SourceTitle "playchess.com"]
[Source "ChessBase"]
[SourceQuality "1"]
[TimeControl "40/5400+30:1800+30"]

1. d4 {[%emt 0:00:03]} d5 {[%emt 0:00:09]} 2. c4 {[%emt 0:00:08]} e6 {[%emt 0:00:06]} 3. Nc3 {[%emt 0:00:13]} Nf6 {[%emt 0:00:26]} 4. Bg5 {[%emt 0:00:28]} Be7 {[%emt 0:00:36]} 5. e3 {[%emt 0:00:18]} c6 {[%emt 0:00:40]} 6. Nf3 {[%emt 0:01:24]} Nbd7 {[%emt 0:01:03]} 7. Rc1 {[%emt 0:03:31]} O-O {[%emt 0:00:38]} 8. Bd3 {[%emt 0:03:49]} dxc4 {[%emt 0:00:31]} 9. Bxc4 {[%emt 0:00:08]} Nd5 {[%emt 0:00:08]} 10. Bxe7 Qxe7 {[%emt 0:00:07]} 11. O-O {[%emt 0:01:02]} Nxc3 {[%emt 0:00:25]} 12. Rxc3 {[%emt 0:00:07]} e5 {[%emt 0:00:13]} 13. Bb3 {[%emt 0:01:39]} e4 {[%emt 0:05:59]} 14. Nd2 {[%emt 0:00:26]} Kh8 {[%emt 0:08:33]} 15. Qh5 {[%emt 0:06:05]} f5 {[%emt 0:06:34]} 16. f3 {[%emt 0:02:35]} Nf6 {[%emt 0:00:30]} 17. Qh4 {[%emt 0:02:35]} Be6 {[%emt 0:10:57]} 18. fxe4 {[%emt 0:03:08]} Bxb3 {[%emt 0:03:47]} 19. axb3 {[%emt 0:05:45]} fxe4 {[%emt 0:01:22]} 20. Rc5 {[%emt 0:01:22]} Rae8 {[%emt 0:04:28]} 21. Re5 {[%emt 0:10:07]} Qb4 {[%emt 0:06:49]} 22. Nxe4 {[%emt 0:07:22]} Nxe4 {[%emt 0:04:08]} 23. Rxf8+ {[%emt 0:03:33]} Rxf8 {[%emt 0:00:26]} 24. Rxe4 {[%emt 0:00:26]} Qxb3 {[%emt 0:01:53]} 25. h3 {[%emt 0:01:05]} h6 {[%emt 0:07:36]} 26. Re7 {[%emt 0:08:03]} Qxb2 {[%emt 0:08:32]} 27. Qg3 {[%emt 0:02:31]} Qb1+ {[%emt 0:01:31]} 28. Kh2 {[%emt 0:00:16]} Rg8 {[%emt 0:00:31]} 29. Qc7 {[%emt 0:00:34]} Qb4 {[%emt 0:07:07]} 30. Qxb7 {[%emt 0:02:05]} Qd6+ 31. Re5 {[%emt 0:07:00]} Re8 {[%emt 0:03:28]} 32. Qxa7 {[%emt 0:00:20]} Rxe5 {[%emt 0:00:18]} 1/2-1/2

[Event "ESCC-65 2022"]
[Site "Lublin"]
[Date "2022.07.09"]
[Round "5.4"]
[White "Syre, Christian"]
[Black "Sciupokas, Arunas"]
[Result "1-0"]
[ECO "A40"]
[WhiteElo "2243"]
[BlackElo "1960"]
[Annotator "RC"]
[PlyCount "77"]
[EventDate "2022.07.05"]
[EventType "swiss"]
[EventCountry "POL"]
[SourceTitle "playchess.com"]
[Source "ChessBase"]
[SourceQuality "1"]
[TimeControl "40/5400+30:1800+30"]

1. d4 {[%emt 0:00:19]} Nc6 {[%emt 0:00:16]} 2. Nf3 {[%emt 0:00:43]} d6 {[%emt 0:02:02]} 3. e4 {[%emt 0:01:06]} Bg4 {[%emt 0:01:51]} 4. Bb5 {[%emt 0:00:28]} a6 {[%emt 0:02:07]} 5. Bxc6+ {[%emt 0:00:08]} bxc6 {[%emt 0:00:07]} 6. Nbd2 {[%emt 0:09:35]} Nf6 {[%emt 0:15:04]} 7. h3 {[%emt 0:00:54]} Bc8 {[%emt 0:06:35]} 8. e5 {[%emt 0:04:44]} Nd5 {[%emt 0:02:17]} 9. Ne4 {[%emt 0:00:42]} e6 {[%emt 0:05:30]} 10. O-O {[%emt 0:05:57]} Be7 {[%emt 0:03:33]} 11. c4 {[%emt 0:12:17]} f5 {[%emt 0:04:18]} 12. Ng3 {[%emt 0:09:02]} Nb6 {[%emt 0:00:36]} 13. b3 {[%emt 0:00:06]} O-O {[%emt 0:02:57]} 14. Ba3 {[%emt 0:02:43]} Nd7 {[%emt 0:19:18]} 15. Re1 {[%emt 0:01:20]} Re8 {[%emt 0:10:47]} 16. exd6 {[%emt 0:12:43]} Bxd6 {[%emt 0:00:53]} 17. Bb2 {[%emt 0:05:09]} Bb7 {[%emt 0:11:46]} 18. c5 {[%emt 0:11:29]} Bxg3 {[%emt 0:02:36]} 19. fxg3 {[%emt 0:00:03]} Nf6 {[%emt 0:01:14]} 20. Bc1 {[%emt 0:00:21]} a5 {[%emt 0:03:01]} 21. Bf4 {[%emt 0:01:27]} a4 {[%emt 0:00:54]} 22. bxa4 {[%emt 0:04:28]} Ba6 {[%emt 0:00:51]} 23. Qc2 {[%emt 0:00:39]} Nd5 {[%emt 0:01:15]} 24. Rab1 {[%emt 0:02:19]} Nxf4 {[%emt 0:00:46]} 25. gxf4 {[%emt 0:00:03]} Qd5 {[%emt 0:00:30]} 26. Rbc1 {[%emt 0:00:44]} Rab8 {[%emt 0:00:37]} 27. Re5 {[%emt 0:00:12]} Qd7 {[%emt 0:00:14]} 28. a3 {[%emt 0:01:07]} Rb7 {[%emt 0:00:20]} 29. Rce1 {[%emt 0:00:05]} h6 {[%emt 0:01:17]} 30. d5 {[%emt 0:10:45]} Rbb8 {[%emt 0:00:44]} 31. dxe6 {[%emt 0:00:28]} Qd3 {[%emt 0:00:33]} 32. Qxd3 {[%emt 0:00:18]} Bxd3 {[%emt 0:00:02]} 33. Nd4 {[%emt 0:00:02]} Be4 {[%emt 0:00:23]} 34. Nxf5 {[%emt 0:00:17]} Bxf5 {[%emt 0:00:50]} 35. Rxf5 {[%emt 0:00:02]} Re7 {[%emt 0:00:13]} 36. Rfe5 {[%emt 0:00:15]} Kf8 {[%emt 0:00:30]} 37. f5 {[%emt 0:00:25]} Ke8 {[%emt 0:00:24]} 38. R1e4 {[%emt 0:01:14]} Rb1+ {[%emt 0:01:06]} 39. Kh2 {[%emt 0:00:04]} 1-0

[Event "ESCC-65 2022"]
[Site "Lublin"]
[Date "2022.07.09"]
[Round "5.5"]
[White "Chapman, Terry P D"]
[Black "Sokolowski, Ryszard"]
[Result "1/2-1/2"]
[ECO "A04"]
[WhiteElo "2207"]
[BlackElo "2050"]
[Annotator "RC"]
[PlyCount "44"]
[EventDate "2022.07.05"]
[EventType "swiss"]
[EventCountry "POL"]
[SourceTitle "playchess.com"]
[Source "ChessBase"]
[SourceQuality "1"]
[TimeControl "40/5400+30:1800+30"]

1. Nf3 {[%emt 0:00:03]} b6 {[%emt 0:01:04]} 2. g3 {[%emt 0:00:15]} Bb7 {[%emt 0:00:19]} 3. Bg2 {[%emt 0:00:07]} c5 {[%emt 0:00:41]} 4. c4 {[%emt 0:00:33]} Nf6 {[%emt 0:00:56]} 5. O-O {[%emt 0:00:12]} g6 {[%emt 0:01:27]} 6. Nc3 {[%emt 0:00:23]} Bg7 {[%emt 0:00:09]} 7. Re1 {[%emt 0:00:47]} Nc6 {[%emt 0:02:46]} 8. e4 {[%emt 0:04:01]} O-O {[%emt 0:01:35]} 9. d3 {[%emt 0:04:45]} d6 {[%emt 0:01:44]} 10. h3 {[%emt 0:00:55]} Nd7 {[%emt 0:00:31]} 11. Be3 {[%emt 0:01:09]} Nde5 {[%emt 0:01:10]} 12. Nh4 {[%emt 0:12:31]} Nb4 {[%emt 0:05:22]} 13. Bf1 {[%emt 0:01:03]} e6 {[%emt 0:00:35]} 14. f4 {[%emt 0:02:48]} Nec6 {[%emt 0:03:32]} 15. a3 {[%emt 0:00:54]} Na6 {[%emt 0:00:17]} 16. Nf3 {[%emt 0:03:39]} Nd4 {[%emt 0:05:09]} 17. Bg2 {[%emt 0:04:57]} Nc7 {[%emt 0:11:21]} 18. Bf2 {[%emt 0:02:43]} e5 {[%emt 0:07:22]} 19. Nxd4 {[%emt 0:00:38]} cxd4 {[%emt 0:01:02]} 20. Nd5 {[%emt 0:02:36]} f5 {[%emt 0:11:26]} 21. exf5 {[%emt 0:10:16]} Nxd5 {[%emt 0:08:02]} 22. cxd5 {[%emt 0:03:44]} Rxf5 {[%emt 0:03:42]} 1/2-1/2

[Event "ESCC-65 2022"]
[Site "Lublin"]
[Date "2022.07.09"]
[Round "5.6"]
[White "Krupa, Jerzy"]
[Black "Biro, Sandor"]
[Result "0-1"]
[ECO "C01"]
[WhiteElo "1771"]
[BlackElo "2116"]
[Annotator "NA RC"]
[PlyCount "69"]
[EventDate "2022.07.05"]
[EventType "swiss"]
[EventCountry "POL"]
[SourceTitle "playchess.com"]
[Source "ChessBase"]
[SourceQuality "1"]
[TimeControl "40/5400+30:1800+30"]

1. e4 {[%emt 0:00:06]} e6 {[%emt 0:00:07]} 2. d4 {[%emt 0:00:22]} d5 {[%emt 0:00:06]} 3. exd5 {[%emt 0:00:21]} exd5 {[%emt 0:00:07]} 4. Nf3 {[%emt 0:00:06]} Nc6 {[%emt 0:00:14]} 5. c3 {[%emt 0:00:33]} Nf6 {[%emt 0:01:10]} 6. Bd3 {[%emt 0:00:21]} Be7 {[%emt 0:01:54]} 7. O-O {[%emt 0:00:14]} O-O {[%emt 0:00:27]} 8. Re1 {[%emt 0:00:31]} Bg4 {[%emt 0:02:19]} 9. Nbd2 {[%emt 0:00:31]} Bd6 {[%emt 0:17:49]} 10. Nf1 {[%emt 0:02:28]} Re8 {[%emt 0:03:49]} 11. Rxe8+ {[%emt 0:17:24]} Qxe8 {[%emt 0:01:31]} 12. Ne3 {[%emt 0:01:18]} Bd7 {[%emt 0:04:21]} 13. Bd2 {[%emt 0:01:07]} g6 {[%emt 0:05:42]} 14. b4 {[%emt 0:05:26]} Nd8 {[%emt 0:07:12]} 15. a4 {[%emt 0:03:34]} c6 {[%emt 0:01:57]} 16. Qb3 {[%emt 0:00:38]} Ne4 {[%emt 0:04:01]} 17. Be1 {[%emt 0:07:45]} Ne6 {[%emt 0:06:31]} 18. c4 {[%emt 0:10:50]} N4g5 {[%emt 0:28:11]} 19. Nxg5 {[%emt 0:02:28]} Nxd4 {[%emt 0:00:43]} 20. Qd1 {[%emt 0:25:46]} Qe5 {[%emt 0:01:05]} 21. g3 {[%emt 0:07:21]} Qxg5 {[%emt 0:00:28]} 22. cxd5 {[%emt 0:00:59]} Re8 {[%emt 0:01:55]} 23. Bc3 {[%emt 0:03:30]} Rxe3 {[%emt 0:05:11]} 24. Bxd4 {[%emt 0:01:00]} Re8 {[%emt 0:01:08]} 25. dxc6 {[%emt 0:03:13]} bxc6 {[%emt 0:01:12]} 26. Bxa7 {[%emt 0:01:36]} Bxb4 {[%emt 0:00:21]} 27. Bf1 {[%emt 0:01:08]} Bg4 {[%emt 0:00:44]} 28. Qb3 {[%emt 0:00:59]} c5 {[%emt 0:00:47]} 29. Bc4 {[%emt 0:00:45]} Qe7 {[%emt 0:00:19]} 30. Bb6 {[%emt 0:00:23]} Bh3 {[%emt 0:00:40]} 31. Bf1 {[%emt 0:01:44]} Be6 {[%emt 0:02:04]} 32. Bc4 {[%emt 0:00:22]} Bh3 {[%emt 0:00:19]} 33. Bf1 {[%emt 0:00:01]} Qf6 {[%emt 0:00:37]} 34. Rd1 {[%emt 0:01:55]} Bxf1 {[%emt 0:00:18]} 35. Bd8 {[%emt 0:01:15]} 0-1

[Event "ESCC-65 2022"]
[Site "Lublin"]
[Date "2022.07.09"]
[Round "5.7"]
[White "Stebbings, Anthony J"]
[Black "Praszak, Michal"]
[Result "1-0"]
[ECO "A44"]
[WhiteElo "2283"]
[BlackElo "2048"]
[Annotator "RC"]
[PlyCount "87"]
[EventDate "2022.07.05"]
[EventType "swiss"]
[EventCountry "POL"]
[SourceTitle "playchess.com"]
[Source "ChessBase"]
[SourceQuality "1"]
[TimeControl "40/5400+30:1800+30"]

1. d4 {[%emt 0:00:03]} c5 {[%emt 0:00:22]} 2. d5 {[%emt 0:00:08]} e5 {[%emt 0:00:08]} 3. e4 {[%emt 0:00:12]} d6 {[%emt 0:00:09]} 4. Nc3 {[%emt 0:00:06]} a6 {[%emt 0:00:23]} 5. a4 {[%emt 0:00:06]} Be7 {[%emt 0:00:09]} 6. Be2 {[%emt 0:03:13]} Nd7 {[%emt 0:00:17]} 7. Nf3 {[%emt 0:00:41]} Nf8 {[%emt 0:00:14]} 8. Nd2 {[%emt 0:02:03]} Bg5 {[%emt 0:02:18]} 9. Nc4 {[%emt 0:00:18]} Bxc1 {[%emt 0:00:12]} 10. Qxc1 {[%emt 0:00:53]} b6 {[%emt 0:00:19]} 11. O-O {[%emt 0:01:38]} Ng6 {[%emt 0:00:14]} 12. Qd2 {[%emt 0:15:21]} Nf6 {[%emt 0:00:17]} 13. Rfb1 {[%emt 0:03:31]} Rb8 {[%emt 0:02:48]} 14. b4 {[%emt 0:03:49]} cxb4 {[%emt 0:00:53]} 15. Rxb4 {[%emt 0:00:08]} Qc7 {[%emt 0:01:10]} 16. Rab1 {[%emt 0:02:07]} Nd7 {[%emt 0:02:41]} 17. Qe3 {[%emt 0:01:23]} O-O {[%emt 0:08:48]} 18. Nxb6 {[%emt 0:01:03]} a5 {[%emt 0:02:50]} 19. R4b2 {[%emt 0:02:02]} Nc5 {[%emt 0:00:54]} 20. Nc4 {[%emt 0:01:13]} Rxb2 {[%emt 0:01:32]} 21. Rxb2 {[%emt 0:00:24]} Bd7 {[%emt 0:02:23]} 22. Nb5 {[%emt 0:02:54]} Bxb5 {[%emt 0:00:07]} 23. axb5 {[%emt 0:01:08]} a4 {[%emt 0:07:03]} 24. b6 {[%emt 0:01:36]} Qd7 {[%emt 0:03:24]} 25. Na3 {[%emt 0:22:53]} Rb8 {[%emt 0:02:10]} 26. Bb5 {[%emt 0:05:12]} Qd8 {[%emt 0:11:20]} 27. Nc4 {[%emt 0:00:12]} Ne7 {[%emt 0:00:44]} 28. Bc6 {[%emt 0:04:19]} f5 {[%emt 0:03:25]} 29. f3 {[%emt 0:05:52]} fxe4 {[%emt 0:01:26]} 30. fxe4 {[%emt 0:00:05]} Ng6 {[%emt 0:00:21]} 31. g3 {[%emt 0:01:13]} Qf6 {[%emt 0:00:42]} 32. Rb1 {[%emt 0:04:42]} h6 {[%emt 0:06:10]} 33. Kg2 {[%emt 0:05:00]} Kh7 {[%emt 0:00:43]} 34. Rf1 {[%emt 0:01:35]} Qe7 {[%emt 0:00:52]} 35. Qf3 {[%emt 0:01:23]} Rf8 {[%emt 0:01:06]} 36. Qg4 {[%emt 0:00:33]} Rb8 {[%emt 0:06:52]} 37. h4 {[%emt 0:01:07]} a3 {[%emt 0:01:35]} 38. Ra1 {[%emt 0:02:38]} Rf8 {[%emt 0:01:12]} 39. h5 {[%emt 0:01:58]} Nf4+ {[%emt 0:07:08]} 40. gxf4 {[%emt 0:00:00]} Rxf4 {[%emt 0:00:00]} 41. Qg6+ {[%emt 0:00:41]} Kg8 {[%emt 0:01:23]} 42. Rxa3 {[%emt 0:00:15]} Qf8 {[%emt 0:00:12]} 43. Ne3 {[%emt 0:08:27]} Nxe4 {[%emt 0:00:54]} 44. Ra8 {[%emt 0:00:19]} 1-0

[Event "ESCC-65 2022"]
[Site "Lublin"]
[Date "2022.07.09"]
[Round "5.8"]
[White "Schulz, Michael"]
[Black "Hewson, Brian W R"]
[Result "1-0"]
[ECO "D00"]
[WhiteElo "2217"]
[BlackElo "2049"]
[Annotator "RC"]
[PlyCount "99"]
[EventDate "2022.07.05"]
[EventType "swiss"]
[EventCountry "POL"]
[SourceTitle "playchess.com"]
[Source "ChessBase"]
[SourceQuality "1"]
[TimeControl "40/5400+30:1800+30"]

1. d4 {[%emt 0:00:04]} d5 {[%emt 0:00:11]} 2. Bg5 {[%emt 0:00:12]} h6 {[%emt 0:03:25]} 3. Bh4 {[%emt 0:00:04]} c5 {[%emt 0:00:31]} 4. Nc3 {[%emt 0:00:53]} Qa5 {[%emt 0:11:47]} 5. e3 {[%emt 0:02:08]} e6 {[%emt 0:02:57]} 6. Bb5+ {[%emt 0:01:20]} Bd7 {[%emt 0:00:37]} 7. Bxd7+ {[%emt 0:01:30]} Nxd7 {[%emt 0:00:19]} 8. Nge2 {[%emt 0:00:10]} Ngf6 {[%emt 0:02:29]} 9. O-O {[%emt 0:01:29]} a6 {[%emt 0:04:51]} 10. a3 {[%emt 0:06:52]} Qc7 {[%emt 0:07:10]} 11. dxc5 {[%emt 0:06:26]} Bxc5 {[%emt 0:01:22]} 12. Bg3 {[%emt 0:00:13]} Qd8 {[%emt 0:07:44]} 13. Qd3 {[%emt 0:09:34]} O-O {[%emt 0:05:09]} 14. Rfd1 {[%emt 0:04:45]} Qc8 {[%emt 0:09:03]} 15. e4 {[%emt 0:06:49]} dxe4 {[%emt 0:00:27]} 16. Nxe4 {[%emt 0:00:08]} Nxe4 {[%emt 0:00:21]} 17. Qxe4 {[%emt 0:02:54]} Nf6 {[%emt 0:00:27]} 18. Qf3 {[%emt 0:00:34]} Be7 {[%emt 0:01:39]} 19. Nc3 {[%emt 0:01:55]} Rd8 {[%emt 0:10:38]} 20. Rxd8+ {[%emt 0:01:41]} Bxd8 {[%emt 0:00:06]} 21. h3 {[%emt 0:02:13]} Be7 {[%emt 0:05:11]} 22. Na4 {[%emt 0:10:25]} Nd5 {[%emt 0:01:07]} 23. Qe4 {[%emt 0:08:17]} Qc6 {[%emt 0:06:36]} 24. b3 {[%emt 0:03:57]} b5 {[%emt 0:01:57]} 25. c4 {[%emt 0:04:21]} bxa4 {[%emt 0:03:46]} 26. cxd5 {[%emt 0:00:10]} Qxd5 {[%emt 0:00:21]} 27. Qxa4 {[%emt 0:00:32]} Bd6 {[%emt 0:06:06]} 28. Bxd6 {[%emt 0:01:31]} Qxd6 {[%emt 0:00:08]} 29. b4 {[%emt 0:04:26]} Rd8 {[%emt 0:02:09]} 30. Qc2 {[%emt 0:01:18]} Qd3 {[%emt 0:00:53]} 31. Qc7 {[%emt 0:03:36]} Rd7 {[%emt 0:00:47]} 32. Qe5 {[%emt 0:01:59]} Rd5 {[%emt 0:00:40]} 33. Qb2 {[%emt 0:00:34]} e5 {[%emt 0:00:38]} 34. a4 {[%emt 0:01:36]} e4 {[%emt 0:00:23]} 35. Re1 {[%emt 0:00:53]} Qd4 {[%emt 0:02:06]} 36. Qxd4 {[%emt 0:01:37]} Rxd4 {[%emt 0:00:03]} 37. Rb1 {[%emt 0:00:10]} a5 {[%emt 0:00:25]} 38. b5 {[%emt 0:01:10]} Rd8 {[%emt 0:01:34]} 39. Kf1 {[%emt 0:00:19]} Kf8 {[%emt 0:00:07]} 40. Ke2 {[%emt 0:00:00]} Rc8 {[%emt 0:00:00]} 41. Ke3 {[%emt 0:00:58]} Ke7 {[%emt 0:03:27]} 42. Kxe4 {[%emt 0:05:12]} Kd6 {[%emt 0:00:22]} 43. Rd1+ {[%emt 0:00:46]} Ke6 {[%emt 0:00:12]} 44. g4 {[%emt 0:01:11]} Rc2 {[%emt 0:04:54]} 45. f4 {[%emt 0:01:40]} Rb2 {[%emt 0:00:13]} 46. f5+ {[%emt 0:00:33]} Ke7 {[%emt 0:00:36]} 47. Kd5 {[%emt 0:00:57]} Kd7 {[%emt 0:00:52]} 48. Kc5+ {[%emt 0:00:41]} Kc7 {[%emt 0:01:33]} 49. b6+ {[%emt 0:00:27]} Kc8 {[%emt 0:02:10]} 50. Kc6 {[%emt 0:00:32]} 1-0

[Event "ESCC-65 2022"]
[Site "Lublin"]
[Date "2022.07.09"]
[Round "5.9"]
[White "Neumann, Joachim"]
[Black "Gasik, Piotr"]
[Result "1-0"]
[ECO "A88"]
[WhiteElo "2082"]
[BlackElo "1990"]
[Annotator "NA RC"]
[PlyCount "111"]
[EventDate "2022.07.05"]
[EventType "swiss"]
[EventCountry "POL"]
[SourceTitle "playchess.com"]
[Source "ChessBase"]
[SourceQuality "1"]
[TimeControl "40/5400+30:1800+30"]

1. c4 {[%emt 0:00:23]} f5 {[%emt 0:00:10]} 2. g3 {[%emt 0:00:38]} Nf6 {[%emt 0:00:07]} 3. Nf3 {[%emt 0:00:44]} d6 {[%emt 0:00:09]} 4. Bg2 {[%emt 0:00:45]} g6 {[%emt 0:04:51]} 5. Nc3 {[%emt 0:01:18]} Bg7 {[%emt 0:00:08]} 6. d4 {[%emt 0:06:09]} O-O {[%emt 0:00:08]} 7. O-O {[%emt 0:01:22]} c6 {[%emt 0:00:05]} 8. b3 {[%emt 0:01:18]} a5 {[%emt 0:02:37]} 9. Bb2 {[%emt 0:01:58]} Na6 {[%emt 0:00:26]} 10. d5 {[%emt 0:15:06]} Bd7 {[%emt 0:00:12]} 11. Nd4 {[%emt 0:01:08]} Qc8 {[%emt 0:13:00]} 12. Rb1 {[%emt 0:20:48]} Rb8 {[%emt 0:08:55]} 13. e3 {[%emt 0:05:07]} h6 {[%emt 0:06:52]} 14. Re1 {[%emt 0:04:33]} c5 {[%emt 0:08:30]} 15. Nde2 {[%emt 0:03:39]} Nc7 {[%emt 0:01:13]} 16. a4 {[%emt 0:06:45]} g5 {[%emt 0:07:21]} 17. f4 {[%emt 0:00:21]} Be8 {[%emt 0:02:50]} 18. Qd2 {[%emt 0:06:31]} Bg6 {[%emt 0:06:18]} 19. Rbd1 {[%emt 0:03:13]} b6 {[%emt 0:08:00]} 20. e4 {[%emt 0:03:09]} Nh7 {[%emt 0:00:48]} 21. exf5 {[%emt 0:01:25]} Bxf5 {[%emt 0:02:25]} 22. Ne4 {[%emt 0:01:34]} g4 {[%emt 0:01:52]} 23. Bxg7 {[%emt 0:00:52]} Kxg7 {[%emt 0:00:09]} 24. N2c3 {[%emt 0:03:27]} Rf7 {[%emt 0:00:47]} 25. Bf1 {[%emt 0:01:12]} Qd7 {[%emt 0:01:27]} 26. Bd3 {[%emt 0:00:28]} Rbf8 {[%emt 0:01:25]} 27. Nf2 {[%emt 0:00:46]} Kg8 {[%emt 0:02:37]} 28. Qe2 {[%emt 0:03:00]} Rg7 {[%emt 0:00:26]} 29. Bxf5 {[%emt 0:01:22]} Qxf5 {[%emt 0:00:38]} 30. Rd3 {[%emt 0:01:41]} Rff7 {[%emt 0:00:45]} 31. Ncd1 {[%emt 0:01:04]} h5 {[%emt 0:01:23]} 32. Ne3 {[%emt 0:00:37]} Qg6 {[%emt 0:00:50]} 33. Ng2 {[%emt 0:00:40]} Ne8 {[%emt 0:02:42]} 34. Nh4 {[%emt 0:00:58]} Qh6 {[%emt 0:01:03]} 35. Re3 {[%emt 0:01:10]} Nf8 {[%emt 0:01:31]} 36. Qd3 {[%emt 0:00:13]} Qh7 {[%emt 0:01:15]} 37. Qd2 {[%emt 0:01:13]} Ng6 {[%emt 0:00:57]} 38. Nxg6 {[%emt 0:00:27]} Qxg6 {[%emt 0:00:51]} 39. Ne4 {[%emt 0:00:04]} Qf5 {[%emt 0:06:30]} 40. Ng5 {[%emt 0:00:00]} Rxg5 {[%emt 0:00:00]} 41. fxg5 {[%emt 0:00:37]} Qxg5 {[%emt 0:00:09]} 42. Qe2 {[%emt 0:01:06]} Kf8 {[%emt 0:00:23]} 43. Rf1 {[%emt 0:01:09]} Ng7 {[%emt 0:00:47]} 44. Rxf7+ {[%emt 0:05:05]} Kxf7 {[%emt 0:00:07]} 45. Re4 {[%emt 0:03:08]} Ke8 {[%emt 0:05:24]} 46. Rf4 {[%emt 0:04:34]} Qg6 {[%emt 0:01:53]} 47. Qe4 {[%emt 0:08:31]} Qg5 {[%emt 0:00:31]} 48. Kg2 {[%emt 0:00:44]} Qh6 {[%emt 0:00:41]} 49. h3 {[%emt 0:01:11]} gxh3+ {[%emt 0:03:28]} 50. Kxh3 {[%emt 0:00:01]} Qg5 {[%emt 0:00:09]} 51. Qh7 {[%emt 0:04:32]} Kd7 {[%emt 0:01:34]} 52. Qe4 {[%emt 0:01:03]} Ke8 {[%emt 0:00:27]} 53. g4 {[%emt 0:02:58]} Qh6 {[%emt 0:03:21]} 54. Kg2 {[%emt 0:00:52]} Qg5 {[%emt 0:01:10]} 55. Kh3 {[%emt 0:01:59]} Qh6 {[%emt 0:00:13]} 56. Kg2 {[%emt 0:00:25]} 1-0

[Event "ESCC-65 2022"]
[Site "Lublin"]
[Date "2022.07.09"]
[Round "5.10"]
[White "Severcan, Sedat Sabri"]
[Black "Wagner-Michel, Annett"]
[Result "1/2-1/2"]
[ECO "D02"]
[WhiteElo "1849"]
[BlackElo "2056"]
[Annotator "NA RC"]
[PlyCount "113"]
[EventDate "2022.07.05"]
[EventType "swiss"]
[EventCountry "POL"]
[SourceTitle "playchess.com"]
[Source "ChessBase"]
[SourceQuality "1"]
[TimeControl "40/5400+30:1800+30"]

1. d4 {[%emt 0:00:17]} d5 {[%emt 0:00:03]} 2. Nf3 {[%emt 0:00:08]} Nf6 {[%emt 0:00:17]} 3. g3 {[%emt 0:00:03]} Bf5 {[%emt 0:01:05]} 4. Bg2 {[%emt 0:00:07]} c6 {[%emt 0:00:21]} 5. O-O {[%emt 0:01:41]} e6 {[%emt 0:00:29]} 6. Nbd2 {[%emt 0:05:26]} Bd6 {[%emt 0:04:10]} 7. c4 {[%emt 0:01:10]} O-O {[%emt 0:00:36]} 8. Nh4 {[%emt 0:03:13]} Bg6 {[%emt 0:05:47]} 9. Nxg6 {[%emt 0:02:07]} hxg6 {[%emt 0:00:15]} 10. e4 {[%emt 0:04:24]} dxe4 {[%emt 0:06:39]} 11. Nxe4 {[%emt 0:00:52]} Nxe4 {[%emt 0:03:11]} 12. Bxe4 {[%emt 0:00:04]} Nd7 {[%emt 0:02:27]} 13. Bg2 {[%emt 0:20:02]} e5 {[%emt 0:21:37]} 14. d5 {[%emt 0:02:44]} c5 {[%emt 0:00:51]} 15. Qg4 {[%emt 0:06:50]} Rb8 {[%emt 0:04:39]} 16. a4 {[%emt 0:02:37]} Nf6 {[%emt 0:08:08]} 17. Qe2 {[%emt 0:01:35]} Qd7 {[%emt 0:03:48]} 18. Be3 {[%emt 0:06:04]} Rbe8 {[%emt 0:03:35]} 19. Qc2 {[%emt 0:11:08]} Ng4 {[%emt 0:06:21]} 20. Bd2 {[%emt 0:05:54]} Nh6 {[%emt 0:04:45]} 21. a5 {[%emt 0:03:48]} Qf5 {[%emt 0:03:23]} 22. Qc1 {[%emt 0:06:29]} Qh5 {[%emt 0:02:13]} 23. Ra3 {[%emt 0:06:46]} f5 {[%emt 0:05:38]} 24. Bxh6 {[%emt 0:04:48]} Qxh6 {[%emt 0:02:25]} 25. Qxh6 {[%emt 0:00:15]} gxh6 {[%emt 0:00:02]} 26. Rb3 {[%emt 0:00:12]} Re7 {[%emt 0:00:41]} 27. f3 {[%emt 0:00:11]} Kf7 {[%emt 0:01:15]} 28. Re1 {[%emt 0:00:14]} h5 {[%emt 0:01:41]} 29. h3 {[%emt 0:00:35]} Rb8 {[%emt 0:00:37]} 30. Kf2 {[%emt 0:00:18]} Ke8 {[%emt 0:00:14]} 31. g4 {[%emt 0:00:51]} hxg4 {[%emt 0:00:27]} 32. hxg4 {[%emt 0:00:02]} Rh7 {[%emt 0:00:29]} 33. Rh1 {[%emt 0:00:14]} Rxh1 {[%emt 0:00:42]} 34. Bxh1 {[%emt 0:00:01]} Ke7 {[%emt 0:01:40]} 35. Bg2 {[%emt 0:00:28]} Kf6 {[%emt 0:00:02]} 36. Bh3 {[%emt 0:01:10]} b6 {[%emt 0:00:11]} 37. a6 {[%emt 0:00:20]} Rh8 {[%emt 0:00:10]} 38. Kg2 {[%emt 0:00:17]} Kg5 {[%emt 0:00:59]} 39. Ra3 {[%emt 0:00:30]} e4 {[%emt 0:01:08]} 40. gxf5 {[%emt 0:00:00]} gxf5 {[%emt 0:00:00]} 41. fxe4 {[%emt 0:00:42]} fxe4 {[%emt 0:00:30]} 42. Re3 {[%emt 0:01:17]} Rh4 {[%emt 0:10:47]} 43. Re1 {[%emt 0:06:51]} Be5 {[%emt 0:05:28]} 44. Rf1 {[%emt 0:03:11]} Rf4 {[%emt 0:03:57]} 45. Rxf4 {[%emt 0:03:04]} Kxf4 {[%emt 0:00:26]} 46. Kf2 {[%emt 0:00:21]} Bxb2 {[%emt 0:01:22]} 47. d6 {[%emt 0:00:07]} Bf6 {[%emt 0:00:19]} 48. Ke2 {[%emt 0:01:02]} Ke5 {[%emt 0:01:40]} 49. d7 {[%emt 0:00:02]} Bg5 {[%emt 0:01:47]} 50. Bg4 {[%emt 0:01:09]} Kd4 {[%emt 0:01:15]} 51. Be6 {[%emt 0:00:06]} Ke5 {[%emt 0:00:48]} 52. Bg4 {[%emt 0:00:07]} Kd4 {[%emt 0:00:18]} 53. Be6 {[%emt 0:00:03]} Ke5 {[%emt 0:00:08]} 54. Bh3 {[%emt 0:01:01]} Kd4 {[%emt 0:00:15]} 55. Be6 {[%emt 0:00:15]} Ke5 {[%emt 0:00:02]} 56. Bg4 {[%emt 0:00:20]} Kd4 {[%emt 0:00:09]} 57. Be6 {[%emt 0:00:35]} 1/2-1/2